bitfinex-derivatives/quotes_BNBF0:USTF0_20250710
["timestamp","ask_amount","ask_price","bid_price","bid_amount"]
[1752114910169,0.25948268,670.84,669.83,1.51337781]
[1752114910468,0.25948268,670.84,669.84,1.51337781]
[1752114910667,0.25948268,670.84,669.85,1.51337781]
[1752114910868,0.25948268,670.84,669.86,1.51337781]
[1752114911064,0.25948268,670.84,669.87,1.51337781]
[1752114911269,0.25948268,670.84,669.88,1.51337781]
[1752114911468,0.25948268,670.84,669.89,1.51337781]
[1752114911666,0.25948268,670.84,669.9,1.51337781]
[1752114911966,0.25948268,670.84,669.9,2.611]
[1752114914868,3.61119936,670.84,669.9,2.611]
[1752114916468,0.25948268,670.84,669.9,2.611]
[1752114917365,3.61119936,670.84,669.9,2.611]
[1752114917665,0.25948268,670.84,669.9,2.611]
[1752114918169,3.61119936,670.84,669.9,2.611]
[1752114919065,3.35171668,670.83,669.9,2.611]
[1752114919269,3.35171668,670.82,669.9,2.611]
[1752114920365,3.35171668,670.8,669.9,2.611]
[1752114920570,3.35171668,670.79,669.9,2.611]
[1752114921368,3.35171668,670.8,669.9,2.611]
[1752114921771,3.35171668,670.76,669.9,2.611]
[1752114922366,3.35171668,670.73,669.9,2.611]
[1752114923470,3.35171668,670.74,669.9,2.611]
[1752114924471,0.25948268,670.84,669.9,2.611]
[1752114925771,0.25948268,670.84,669.64,0.25959688]
[1752114925971,0.25948268,670.84,669.65,1.510595]
[1752114926268,0.25948268,670.84,669.66,1.510595]
[1752114926468,0.25948268,670.84,669.67,1.510595]
[1752114926673,0.25948268,670.84,669.68,1.510595]
[1752114926869,0.25948268,670.84,669.69,1.510595]
[1752114927075,0.25948268,670.84,669.7,1.510595]
[1752114927369,0.25948268,670.84,669.71,1.510595]
[1752114927572,0.25948268,670.84,669.72,1.510595]
[1752114927770,0.25948268,670.84,669.73,1.510595]
[1752114928069,0.25948268,670.84,669.74,1.510595]
[1752114928268,0.25948268,670.84,669.75,1.510595]
[1752114928470,0.25948268,670.84,669.76,1.510595]
[1752114928668,0.25948268,670.84,669.77,1.510595]
[1752114928873,0.25948268,670.84,669.78,1.510595]
[1752114929069,0.25948268,670.84,669.79,1.510595]
[1752114929273,0.25948268,670.84,669.8,1.510595]
[1752114929572,0.25948268,670.84,669.81,1.510595]
[1752114929772,0.25948268,670.84,669.82,1.510595]
[1752114929971,0.25948268,670.84,669.83,1.510595]
[1752114930170,0.25948268,670.84,669.84,1.510595]
[1752114930474,0.25948268,670.84,669.85,1.510595]
[1752114930673,0.25948268,670.84,669.86,1.510595]
[1752114930873,0.25948268,670.84,669.87,1.510595]
[1752114931070,0.25948268,670.84,669.88,1.510595]
[1752114931273,0.25948268,670.84,669.89,1.510595]
[1752114931470,0.25948268,670.84,669.9,1.510595]
[1752114931668,0.25948268,670.84,669.76,2.518]
[1752114931871,0.25948268,670.84,669.77,1.5108848]
[1752114932075,0.25948268,670.84,669.78,1.5108848]
[1752114932270,0.25948268,670.84,669.79,1.5108848]
[1752114932471,0.25948268,670.84,669.76,2.518]
[1752114932472,0.25948268,670.84,669.8,1.5108848]
[1752114932771,0.25948268,670.84,669.81,1.5108848]
[1752114932971,0.25948268,670.84,669.82,1.5108848]
[1752114933171,0.25948268,670.84,669.83,1.5108848]
[1752114933471,0.25948268,670.84,669.84,1.5108848]
[1752114933675,0.25948268,670.84,669.85,1.5108848]
[1752114933877,0.25948268,670.84,669.86,1.5108848]
[1752114934074,0.25948268,670.84,669.87,1.5108848]
[1752114934278,0.25948268,670.84,669.88,1.5108848]
[1752114934473,0.25948268,670.84,669.89,1.5108848]
[1752114934677,0.25948268,670.84,669.9,1.5108848]
[1752114934877,0.25948268,670.84,669.91,1.5108848]
[1752114935175,0.25948268,670.84,669.92,1.5108848]
[1752114935477,0.25948268,670.84,669.93,1.5108848]
[1752114935675,0.25948268,670.84,669.94,1.5108848]
[1752114935877,0.25948268,670.84,669.95,1.5108848]
[1752114936077,0.25948268,670.84,669.96,1.5108848]
[1752114936279,0.25948268,670.84,669.97,1.5108848]
[1752114936579,0.25948268,670.84,669.98,1.5108848]
[1752114936778,0.25948268,670.84,669.99,1.5108848]
[1752114936975,0.25948268,670.84,670.0,1.5108848]
[1752114937275,0.25948268,670.84,669.76,2.518]
[1752114937474,0.25948268,670.84,669.77,1.51606732]
[1752114937680,0.25948268,670.84,669.78,1.51606732]
[1752114937879,0.25948268,670.84,669.79,1.51606732]
[1752114938077,0.25948268,670.84,669.8,1.51606732]
[1752114938376,0.25948268,670.84,669.76,2.518]
[1752114938377,0.25948268,670.84,669.81,1.51606732]
[1752114938578,0.25948268,670.84,669.82,1.51606732]
[1752114938877,0.25948268,670.84,669.83,1.51606732]
[1752114939181,0.25948268,670.84,669.84,1.51606732]
[1752114939477,0.25948268,670.84,669.85,1.51606732]
[1752114939775,0.25948268,670.84,669.86,1.51606732]
[1752114939981,0.25948268,670.84,669.87,1.51606732]
[1752114940181,0.25948268,670.84,669.88,1.51606732]
[1752114940480,0.25948268,670.84,669.89,1.51606732]
[1752114940776,0.25948268,670.84,669.9,1.51606732]
[1752114940981,3.35171668,670.81,669.91,1.51606732]
[1752114941178,0.25948268,670.84,669.92,1.51606732]
[1752114941479,0.25948268,670.84,669.93,1.51606732]
[1752114941682,0.25948268,670.84,669.94,1.51606732]
[1752114941978,0.25948268,670.84,669.95,1.51606732]
[1752114942178,0.25948268,670.84,669.96,1.51606732]
[1752114942482,0.25948268,670.84,669.97,1.51606732]
[1752114942690,0.25948268,670.84,669.98,1.51606732]
[1752114942884,0.25948268,670.84,669.99,1.51606732]
[1752114943185,0.25948268,670.84,670.0,1.51606732]
[1752114943487,0.25948268,670.84,670.01,1.51606732]
[1752114943788,3.61119936,670.84,670.02,1.51606732]
[1752114944087,0.25948268,670.84,670.03,1.51606732]
[1752114944285,3.61119936,670.84,670.04,1.51606732]
[1752114944484,3.61119936,670.84,670.05,1.51606732]
[1752114944684,3.61119936,670.84,670.06,1.51606732]
[1752114944989,0.25948268,670.84,670.07,1.51606732]
[1752114945289,0.25948268,670.84,670.08,1.51713242]
[1752114945489,0.25948268,670.84,669.82,1.66388341]
[1752114945689,0.25948268,670.84,669.83,1.5171607]
[1752114945985,0.25948268,670.84,669.84,1.5171607]
[1752114946189,0.25948268,670.84,669.85,1.5171607]
[1752114946391,0.25948268,670.84,669.86,1.5171607]
[1752114946685,0.25948268,670.84,669.87,1.5171607]
[1752114946989,0.25948268,670.84,669.88,1.5171607]
[1752114947285,0.25948268,670.84,669.89,1.5171607]
[1752114947489,0.25948268,670.84,669.9,1.5171607]
[1752114947685,0.25948268,670.84,669.91,1.5171607]
[1752114947891,0.25948268,670.84,669.92,1.5171607]
[1752114948087,0.25948268,670.84,669.93,1.5171607]
[1752114948292,0.25948268,670.84,669.94,1.5171607]
[1752114948489,0.25948268,670.84,669.95,1.5171607]
[1752114948691,0.25948268,670.84,669.96,1.5171607]
[1752114948895,0.25948268,670.84,669.97,1.5171607]
[1752114949096,0.25948268,670.84,669.98,1.5171607]
[1752114949296,0.25948268,670.84,669.99,1.5171607]
[1752114949496,0.25948268,670.84,670.0,1.5171607]
[1752114949691,0.25948268,670.84,670.01,1.5171607]
[1752114949992,0.25948268,670.84,670.02,1.5171607]
[1752114950197,0.25948268,670.84,670.03,1.5171607]
[1752114950495,0.25948268,670.84,670.04,1.5171607]
[1752114950699,0.25948268,670.84,670.05,1.5171607]
[1752114950893,0.25948268,670.84,670.06,1.5171607]
[1752114951096,0.25948268,670.84,670.07,1.5171607]
[1752114951397,0.25948268,670.84,670.08,1.5171607]
[1752114951598,0.25948268,670.84,669.71,1.66388341]
[1752114951794,0.25948268,670.84,669.72,1.51797889]
[1752114951999,0.25948268,670.84,669.73,1.51797889]
[1752114952198,0.25948268,670.84,669.74,1.51797889]
[1752114952398,0.25948268,670.84,669.75,1.51797889]
[1752114952596,0.25948268,670.84,669.76,1.51797889]
[1752114952794,0.25948268,670.84,669.77,1.51797889]
[1752114952995,0.25948268,670.84,669.78,1.51797889]
[1752114953201,0.25948268,670.84,669.79,1.51797889]
[1752114953400,0.25948268,670.84,669.8,1.51797889]
[1752114953599,0.25948268,670.84,669.81,1.51797889]
[1752114953799,0.25948268,670.84,669.82,1.51797889]
[1752114954099,0.25948268,670.84,669.83,1.51797889]
[1752114954295,0.25948268,670.84,669.84,1.51797889]
[1752114954499,0.25948268,670.84,669.85,1.51797889]
[1752114954700,0.25948268,670.84,669.86,1.51797889]
[1752114954896,0.25948268,670.84,669.87,1.51797889]
[1752114955200,0.25948268,670.84,669.88,1.51797889]
[1752114955401,0.25948268,670.84,669.89,1.51797889]
[1752114955601,0.25948268,670.84,669.8,2.344]
[1752114955602,0.25948268,670.84,669.9,1.51797889]
[1752114955802,0.25948268,670.84,669.91,1.51797889]
[1752114956002,0.25948268,670.84,669.92,1.51797889]
[1752114956201,0.25948268,670.84,669.93,1.51797889]
[1752114956401,0.25948268,670.84,669.94,1.51797889]
[1752114956601,0.25948268,670.84,669.95,1.51797889]
[1752114956797,0.25948268,670.84,669.96,1.51797889]
[1752114957000,0.25948268,670.84,669.97,1.51797889]
[1752114957198,0.25948268,670.84,669.8,2.344]
[1752114957199,0.25948268,670.84,669.98,1.51797889]
[1752114957399,0.25948268,670.84,669.99,1.51797889]
[1752114957602,0.25948268,670.84,670.0,1.51797889]
[1752114957799,0.25948268,670.84,670.01,1.51797889]
[1752114958099,0.25948268,670.84,670.02,1.51797889]
[1752114958302,0.25948268,670.84,670.03,1.51797889]
[1752114958505,0.25948268,670.84,670.04,1.51797889]
[1752114958706,0.25948268,670.84,669.8,2.344]
[1752114958905,0.25948268,670.84,669.81,1.51986013]
[1752114959203,0.25948268,670.84,669.82,1.51986013]
[1752114959402,0.25948268,670.84,669.83,1.51986013]
[1752114959605,0.25948268,670.84,669.84,1.51986013]
[1752114959806,0.25948268,670.84,669.85,1.51986013]
[1752114960006,0.25948268,670.84,669.86,1.51986013]
[1752114960208,0.25948268,670.84,669.87,1.51986013]
[1752114960508,0.25948268,670.84,669.88,1.51986013]
[1752114960803,3.35171668,670.83,669.89,1.51986013]
[1752114961002,3.35171668,670.83,669.9,1.51986013]
[1752114961207,3.35171668,670.83,669.91,1.51986013]
[1752114961403,3.35171668,670.83,669.92,1.51986013]
[1752114961605,3.35171668,670.83,669.93,1.51986013]
[1752114961804,3.35171668,670.83,669.94,1.51986013]
[1752114962104,3.35171668,670.83,669.95,1.51986013]
[1752114962304,3.35171668,670.83,669.96,1.51986013]
[1752114962508,3.35171668,670.83,669.97,1.51986013]
[1752114962704,3.35171668,670.83,669.98,1.51986013]
[1752114962907,3.35171668,670.83,669.99,1.51986013]
[1752114963105,3.35171668,670.83,670.0,1.51986013]
[1752114963409,3.35171668,670.83,670.01,1.51986013]
[1752114963704,3.35171668,670.83,669.8,2.344]
[1752114963705,3.35171668,670.83,670.02,1.51986013]
[1752114963909,3.35171668,670.83,670.03,1.51996987]
[1752114964209,3.61119936,670.84,670.04,1.51996987]
[1752114964506,3.61119936,670.84,669.8,2.344]
[1752114964709,3.61119936,670.84,669.81,1.51998382]
[1752114965007,3.61119936,670.84,669.82,1.51998382]
[1752114965208,3.35171668,670.83,669.83,1.51998382]
[1752114965406,3.35171668,670.83,669.84,1.51998382]
[1752114965609,3.35171668,670.83,669.85,1.51998382]
[1752114965904,3.35171668,670.83,669.86,1.51998382]
[1752114966105,3.35171668,670.83,669.87,1.51998382]
[1752114966306,3.35171668,670.83,669.88,1.51998382]
[1752114966604,3.35171668,670.83,669.89,1.51998382]
[1752114966807,3.35171668,670.83,669.9,1.51998382]
[1752114967009,3.35171668,670.83,669.91,1.51998382]
[1752114967205,3.35171668,670.75,669.92,1.51998382]
[1752114967406,3.35171668,670.75,669.93,1.51998382]
[1752114967610,3.35171668,670.75,669.94,1.51998382]
[1752114967808,3.35171668,670.75,669.95,1.51998382]
[1752114968107,3.35171668,670.73,669.96,1.51998382]
[1752114968409,3.35171668,670.72,669.97,1.51998382]
[1752114968707,3.35171668,670.72,669.98,1.51998382]
[1752114968906,3.35171668,670.72,669.99,1.51998382]
[1752114969111,3.35171668,670.71,670.0,1.51998382]
[1752114969413,3.35171668,670.71,670.01,1.51998382]
[1752114969712,3.35171668,670.71,670.02,1.51998382]
[1752114970009,3.35171668,670.71,670.03,1.51998382]
[1752114970212,3.35171668,670.71,669.8,2.344]
[1752114970413,3.35171668,670.71,669.81,1.520566]
[1752114970608,3.35171668,670.71,669.82,1.520566]
[1752114970811,3.35171668,670.71,669.83,1.520566]
[1752114971107,3.35171668,670.71,669.84,1.520566]
[1752114971310,3.35171668,670.71,669.85,1.520566]
[1752114971515,3.35171668,670.71,669.86,1.520566]
[1752114971714,3.35171668,670.71,669.87,1.520566]
[1752114972009,3.35171668,670.67,669.88,1.520566]
[1752114972214,3.35171668,670.67,669.89,1.520566]
[1752114972414,3.35171668,670.67,669.9,1.520566]
[1752114972615,3.35171668,670.67,669.91,1.520566]
[1752114972811,3.35171668,670.66,669.92,1.520566]
[1752114973015,3.35171668,670.66,669.93,1.520566]
[1752114973213,3.35171668,670.66,669.94,1.520566]
[1752114973412,3.35171668,670.65,669.95,1.520566]
[1752114973611,3.35171668,670.65,669.96,1.520566]
[1752114973915,3.35171668,670.65,669.97,1.520566]
[1752114974115,3.35171668,670.64,669.98,1.520566]
[1752114974315,3.35171668,670.64,669.99,1.520566]
[1752114974513,3.35171668,670.64,670.0,1.520566]
[1752114974715,3.35171668,670.64,670.01,1.520566]
[1752114974915,3.35171668,670.64,670.02,1.520566]
[1752114975215,3.35171668,670.64,670.03,1.520566]
[1752114975514,3.35171668,670.64,670.04,1.520566]
[1752114975716,3.35171668,670.64,669.81,1.6660564]
[1752114975914,3.35171668,670.64,669.82,1.52092229]
[1752114976117,3.35171668,670.64,669.83,1.52092229]
[1752114976314,3.35171668,670.64,669.84,1.52092229]
[1752114976514,3.35171668,670.64,669.85,1.52092229]
[1752114976716,3.35171668,670.64,669.86,1.52092229]
[1752114976913,3.35171668,670.65,669.87,1.52092229]
[1752114977118,3.35171668,670.67,669.88,1.52092229]
[1752114977319,3.35171668,670.67,669.89,1.52092229]
[1752114977516,3.35171668,670.67,669.9,1.52092229]
[1752114977821,3.35171668,670.66,669.91,1.52092229]
[1752114978021,3.35171668,670.66,669.92,1.52092229]
[1752114978222,3.35171668,670.67,669.93,1.52092229]
[1752114978422,3.35171668,670.67,669.94,1.52092229]
[1752114978718,3.35171668,670.67,669.95,1.52092229]
[1752114978923,3.35171668,670.67,669.96,1.52092229]
[1752114979123,3.35171668,670.67,669.97,1.52092229]
[1752114979322,3.35171668,670.65,669.98,1.52092229]
[1752114979521,3.35171668,670.65,669.99,1.52092229]
[1752114979824,3.35171668,670.65,670.0,1.52092229]
[1752114980023,3.35171668,670.65,670.01,1.52092229]
[1752114980224,3.35171668,670.65,670.02,1.52092229]
[1752114980424,3.35171668,670.65,669.82,1.6660564]
[1752114980425,3.35171668,670.65,670.03,1.52092229]
[1752114980620,3.35171668,670.65,670.04,1.52092229]
[1752114980819,3.35171668,670.65,670.05,1.52092229]
[1752114981019,3.35171668,670.72,670.06,1.52092229]
[1752114981222,3.35171668,670.72,669.8,2.344]
[1752114981422,3.35171668,670.72,669.81,1.52145236]
[1752114981720,3.35171668,670.72,669.82,1.52145236]
[1752114981922,3.35171668,670.71,669.83,1.52145236]
[1752114982220,3.35171668,670.71,669.84,1.52145236]
[1752114982422,3.35171668,670.71,669.85,1.52145236]
[1752114982624,3.35171668,670.71,669.86,1.52145236]
[1752114982824,3.35171668,670.71,669.87,1.52145236]
[1752114983028,3.35171668,670.71,669.88,1.52145236]
[1752114983229,3.35171668,670.71,669.89,1.52145236]
[1752114983428,3.35171668,670.71,669.9,1.52145236]
[1752114983629,3.35171668,670.71,669.91,1.52145236]
[1752114983826,3.35171668,670.71,669.92,1.52145236]
[1752114984125,3.35171668,670.71,669.93,1.52145236]
[1752114984326,3.35171668,670.7,669.94,1.52145236]
[1752114984525,3.35171668,670.7,669.95,1.52145236]
[1752114984729,3.35171668,670.7,669.96,1.52145236]
[1752114985026,3.35171668,670.7,669.97,1.52145236]
[1752114985229,3.35171668,670.71,669.98,1.52145236]
[1752114985427,3.35171668,670.71,669.99,1.52145236]
[1752114985630,3.35171668,670.7,670.0,1.52145236]
[1752114985930,3.35171668,670.7,670.01,1.52145236]
[1752114986229,3.35171668,670.7,670.02,1.52145236]
[1752114986429,3.35171668,670.7,670.03,1.52145236]
[1752114986630,3.35171668,670.7,670.04,1.52145236]
[1752114986830,3.35171668,670.69,670.05,1.52145236]
[1752114987030,3.35171668,670.68,670.06,1.52145236]
[1752114987230,3.35171668,670.68,670.07,1.52145236]
[1752114987530,3.35171668,670.68,669.81,1.6660564]
[1752114987728,3.35171668,670.68,669.82,1.52230304]
[1752114987925,3.35171668,670.68,669.83,1.52230304]
[1752114988125,3.35171668,670.68,669.84,1.52230304]
[1752114988328,3.35171668,670.67,669.85,1.52230304]
[1752114988524,3.35171668,670.67,669.86,1.52230304]
[1752114988726,3.35171668,670.67,669.87,1.52230304]
[1752114988931,0.25948268,670.84,669.88,1.52230304]
[1752114989229,0.25948268,670.84,669.89,1.52230304]
[1752114989426,0.25948268,670.84,669.9,1.52230304]
[1752114989623,0.25948268,670.84,669.91,1.52230304]
[1752114989826,0.25948268,670.84,669.92,1.52230304]
[1752114990126,0.25948268,670.84,669.93,1.52230304]
[1752114990326,0.25948268,670.84,669.94,1.52230304]
[1752114990528,0.25948268,670.84,669.95,1.52230304]
[1752114990729,0.25948268,670.84,669.96,1.52230304]
[1752114990930,0.25948268,670.84,669.97,1.52230304]
[1752114991125,0.25948268,670.84,669.98,1.52230304]
[1752114991328,0.25948268,670.84,669.99,1.52230304]
[1752114991631,0.25948268,670.84,670.0,1.52230304]
[1752114991830,0.25948268,670.84,670.01,1.52230304]
[1752114992035,0.25948268,670.84,670.02,1.52230304]
[1752114992228,0.25948268,670.84,670.03,1.52230304]
[1752114992532,0.25948268,670.84,670.04,1.52230304]
[1752114992732,0.25948268,670.84,670.05,1.52230304]
[1752114993028,0.25948268,670.84,670.06,1.52230304]
[1752114993228,0.25948268,670.84,670.07,1.52230304]
[1752114993430,0.25948268,670.84,670.08,1.52230304]
[1752114993626,0.25948268,670.84,670.09,1.52230304]
[1752114993835,0.25948268,670.84,670.1,1.52230304]
[1752114994133,0.25948268,670.84,669.94,2.196]
[1752114994334,0.25948268,670.84,669.95,1.52334246]
[1752114994533,0.25948268,670.84,669.96,1.52334246]
[1752114994734,0.25948268,670.84,669.97,1.52334246]
[1752114995031,0.25948268,670.84,669.98,1.52334246]
[1752114995232,0.25948268,670.84,669.99,1.52334246]
[1752114995530,0.25948268,670.84,670.0,1.52334246]
[1752114995727,0.25948268,670.84,670.01,1.52334246]
[1752114995928,0.25948268,670.84,670.02,1.52334246]
[1752114996132,0.25948268,670.84,670.03,1.52334246]
[1752114996331,0.25948268,670.84,670.04,1.52334246]
[1752114996528,0.25948268,670.84,669.94,2.196]
[1752114996529,0.25948268,670.84,670.05,1.52334246]
[1752114996727,0.25948268,670.84,670.06,1.52334246]
[1752114997027,0.25948268,670.84,670.07,1.52334246]
[1752114997232,0.25948268,670.84,670.08,1.52334246]
[1752114997428,0.25948268,670.84,670.09,1.52334246]
[1752114997627,0.25948268,670.84,669.94,2.196]
[1752114997831,0.25948268,670.84,669.95,1.52038956]
[1752114998130,0.25948268,670.84,669.96,1.52038956]
[1752114998327,0.25948268,670.84,669.97,1.52038956]
[1752114998627,0.25948268,670.84,669.98,1.52038956]
[1752114998833,3.35171668,670.8,669.99,1.52038956]
[1752114999034,3.35171668,670.8,670.0,1.52038956]
[1752114999329,3.35171668,670.8,670.01,1.52038956]
[1752114999529,3.35171668,670.8,670.02,1.52038956]
[1752114999730,3.35171668,670.8,670.03,1.52038956]
[1752114999931,3.35171668,670.8,670.04,1.52038956]
[1752115000136,3.35171668,670.8,670.05,1.52038956]
[1752115000335,3.35171668,670.8,670.06,1.52038956]
[1752115000532,3.35171668,670.8,670.07,1.52038956]
[1752115000736,3.35171668,670.8,670.08,1.52038956]
[1752115000932,3.35171668,670.8,670.09,1.52038956]
[1752115001138,3.35171668,670.8,669.94,2.196]
[1752115001340,3.35171668,670.8,669.95,1.52038419]
[1752115001542,3.35171668,670.72,669.96,1.52038419]
[1752115001741,3.35171668,670.72,669.97,1.52038419]
[1752115001939,3.35171668,670.72,669.98,1.52038419]
[1752115002243,3.35171668,670.72,669.99,1.52038419]
[1752115002442,3.35171668,670.72,670.0,1.52038419]
[1752115002741,3.35171668,670.72,670.01,1.52038419]
[1752115002938,3.35171668,670.72,670.02,1.52038419]
[1752115003237,3.35171668,670.72,670.03,1.52038419]
[1752115003438,3.35171668,670.72,670.04,1.52038419]
[1752115003638,3.35171668,670.7,670.05,1.52038419]
[1752115003842,3.35171668,670.64,670.06,1.52038419]
[1752115004037,3.35171668,670.64,669.94,2.196]
[1752115004038,3.35171668,670.64,670.07,1.52038419]
[1752115004242,3.35171668,670.64,670.08,1.52038419]
[1752115004447,3.35171668,670.63,670.09,1.52038419]
[1752115004644,3.35171668,670.63,669.94,2.196]
[1752115004841,3.35171668,670.63,669.95,1.52055226]
[1752115005139,3.35171668,670.62,669.96,1.52055226]
[1752115005345,3.35171668,670.62,669.97,1.52055226]
[1752115005642,3.35171668,670.62,669.98,1.52055226]
[1752115005945,3.35171668,670.61,669.99,1.52055226]
[1752115006241,3.35171668,670.61,670.0,1.52055226]
[1752115006441,3.35171668,670.6,670.01,1.52055226]
[1752115006645,3.35171668,670.6,670.02,1.52055226]
[1752115006940,3.35171668,670.6,670.03,1.52055226]
[1752115007141,3.35171668,670.6,670.04,1.52055226]
[1752115007341,3.35171668,670.6,670.05,1.52055226]
[1752115007541,3.35171668,670.6,670.06,1.52055226]
[1752115007742,3.35171668,670.59,670.07,1.52055226]
[1752115007944,3.35171668,670.59,670.08,1.52055226]
[1752115008241,3.35171668,670.59,670.09,1.52055226]
[1752115008545,3.35171668,670.59,670.09,2.435]
[1752115008745,3.35171668,670.58,670.09,2.435]
[1752115009244,3.35171668,670.57,670.09,2.435]
[1752115010345,3.35171668,670.55,670.09,2.435]
[1752115010945,3.35171668,670.53,670.09,2.435]
[1752115011146,3.35171668,670.49,670.09,2.435]
[1752115012342,3.35171668,670.54,670.1,1.52164712]
[1752115012643,3.35171668,670.54,670.09,2.435]
[1752115012946,3.35171668,670.54,670.1,1.52168819]
[1752115013145,3.35171668,670.54,670.09,2.435]
[1752115013346,3.35171668,670.54,670.1,1.52224457]
[1752115013548,3.35171668,670.53,670.09,2.435]
[1752115013742,3.35171668,670.53,670.1,1.52244638]
[1752115013942,3.35171668,670.53,670.09,2.435]
[1752115014146,3.35171668,670.53,670.1,1.52244746]
[1752115014343,3.35171668,670.53,670.09,2.435]
[1752115014547,3.35171668,670.75,670.1,1.52254109]
[1752115014748,3.35171668,670.74,670.11,1.52254109]
[1752115014944,3.35171668,670.74,670.09,2.435]
[1752115015245,3.35171668,670.74,670.1,1.52258497]
[1752115015445,3.35171668,670.74,670.11,1.52268951]
[1752115015644,3.35171668,670.74,670.09,2.435]
[1752115015850,3.35171668,670.68,670.09,2.435]
[1752115018246,3.35171668,670.69,670.09,2.435]
[1752115019352,3.35171668,670.7,670.09,2.435]
[1752115020454,3.35171668,670.7,669.68,1.6660564]
[1752115020748,3.35171668,670.7,669.69,1.52258275]
[1752115020948,3.35171668,670.7,669.7,1.52258275]
[1752115021153,3.35171668,670.7,669.71,1.52258275]
[1752115021354,3.35171668,670.7,669.72,1.52258275]
[1752115021554,3.35171668,670.7,669.73,1.52258275]
[1752115021755,3.35171668,670.7,669.74,1.52258275]
[1752115022050,3.35171668,670.7,669.75,1.52258275]
[1752115022250,3.35171668,670.7,669.76,1.52258275]
[1752115022550,3.35171668,670.7,669.77,1.52258275]
[1752115022750,3.35171668,670.7,669.78,1.52258275]
[1752115023050,3.35171668,670.7,669.79,1.52258275]
[1752115023248,3.35171668,670.7,669.8,1.52258275]
[1752115023452,3.35171668,670.7,669.81,1.52258275]
[1752115023653,0.2596269,670.48,669.82,1.52258275]
[1752115023849,0.2596269,670.48,669.83,1.52258275]
[1752115024051,0.2596269,670.48,669.84,1.52258275]
[1752115024249,0.2596269,670.48,669.85,1.52258275]
[1752115024451,0.2596269,670.48,669.86,1.52258275]
[1752115024652,0.2596269,670.48,669.87,1.52258275]
[1752115024852,0.2596269,670.48,669.88,1.52258275]
[1752115025150,0.2596269,670.48,669.89,1.52258275]
[1752115025353,0.2596269,670.48,669.9,1.52258275]
[1752115025649,0.2596269,670.48,669.91,1.52258275]
[1752115025848,0.2596269,670.48,669.92,1.52258275]
[1752115026049,0.2596269,670.48,669.93,1.52258275]
[1752115026349,0.2596269,670.48,669.94,1.52258275]
[1752115026550,0.2596269,670.48,669.8,1.851]
[1752115026551,0.2596269,670.48,669.95,1.52258275]
[1752115026752,0.2596269,670.48,669.96,1.52258275]
[1752115026951,0.2596269,670.48,669.97,1.52258275]
[1752115027152,3.61134358,670.48,669.98,1.52258275]
[1752115027351,0.2596269,670.48,669.99,1.52258275]
[1752115027552,0.2596269,670.48,670.0,1.52258275]
[1752115027855,0.2596269,670.48,669.8,1.851]
[1752115028057,0.2596269,670.48,669.81,1.51810104]
[1752115028253,0.2596269,670.48,669.82,1.51810104]
[1752115028451,0.2596269,670.48,669.83,1.51810104]
[1752115028653,0.2596269,670.48,669.84,1.51810104]
[1752115028852,0.2596269,670.48,669.85,1.51810104]
[1752115029052,0.2596269,670.48,669.86,1.51810104]
[1752115029252,0.2596269,670.48,669.87,1.51810104]
[1752115029449,0.2596269,670.48,669.88,1.51810104]
[1752115029652,0.2596269,670.48,669.89,1.51810104]
[1752115029855,0.2596269,670.48,669.9,1.51810104]
[1752115030052,0.2596269,670.48,669.91,1.51810104]
[1752115030251,0.2596269,670.48,669.92,1.51810104]
[1752115030455,0.2596269,670.48,669.93,1.51810104]
[1752115030654,0.2596269,670.48,669.8,1.851]
[1752115030852,0.2596269,670.48,669.81,1.51776871]
[1752115031053,0.2596269,670.48,669.82,1.51776871]
[1752115031253,0.2596269,670.48,669.83,1.51776871]
[1752115031453,0.2596269,670.48,669.84,1.51776871]
[1752115031757,0.2596269,670.48,669.85,1.51776871]
[1752115031957,0.2596269,670.48,669.86,1.51776871]
[1752115032156,0.2596269,670.48,669.87,1.51776871]
[1752115032356,0.2596269,670.48,669.88,1.51776871]
[1752115032554,0.2596269,670.48,669.89,1.51776871]
[1752115032756,0.2596269,670.48,669.9,1.51776871]
[1752115033057,0.2596269,670.48,669.91,1.51776871]
[1752115033257,0.2596269,670.48,669.92,1.51776871]
[1752115033557,0.2596269,670.48,669.8,1.851]
[1752115033756,0.2596269,670.48,669.81,1.51729795]
[1752115033956,0.2596269,670.48,669.82,1.51729795]
[1752115034152,0.2596269,670.48,669.83,1.51729795]
[1752115034355,0.2596269,670.48,669.84,1.51729795]
[1752115034558,0.2596269,670.48,669.85,1.51729795]
[1752115034758,0.2596269,670.48,669.86,1.51729795]
[1752115034953,0.2596269,670.48,669.87,1.51729795]
[1752115035258,0.2596269,670.48,669.88,1.51729795]
[1752115035458,0.2596269,670.48,669.89,1.51729795]
[1752115035657,0.2596269,670.48,669.8,1.851]
[1752115055878,0.2596269,670.48,669.81,1.51354133]
[1752115056076,0.2596269,670.48,669.8,1.851]
[1752115056380,0.2596269,670.48,669.81,1.513541]
[1752115056578,0.2596269,670.48,669.8,1.851]